bitfinex/quotes_BTCUSD_20220120
["timestamp","ask_amount","ask_price","bid_price","bid_amount"]
[1642722599622,0.36299635,40724.0,40716.0,0.10238355]
[1642722599819,0.06226,40728.0,40717.0,0.00049071]
[1642722600021,0.061406,40723.0,40717.0,0.00049071]
[1642722600620,0.061406,40722.0,40717.0,0.00049071]
[1642722600820,0.061406,40722.0,40717.0,0.009803]
[1642722601022,0.31948211,40720.0,40717.0,0.01059046]
[1642722601224,0.38089311,40720.0,40717.0,0.00078746]
[1642722601820,0.44230141,40720.0,40717.0,0.00078746]
[1642722602023,0.44230141,40720.0,40716.0,0.0011]
[1642722602024,0.45330141,40720.0,40716.0,0.0011]
[1642722602274,0.433065,40719.0,40716.0,0.00188749]
[1642722602773,0.583065,40719.0,40716.0,0.00188749]
[1642722603173,0.583065,40719.0,40716.0,0.001172]
[1642722603575,0.0451,40719.0,40716.0,0.001172]
[1642722603975,0.06732163,40719.0,40716.0,0.001172]
[1642722604175,0.061413,40718.0,40716.0,0.001172]
[1642722604375,0.061413,40718.0,40716.0,0.0011]
[1642722604376,0.16793,40718.0,40716.0,0.0011]
[1642722604577,0.387965,40717.0,40716.0,0.0011]
[1642722605578,0.97502826,40717.0,40716.0,0.0011]
[1642722605921,2.49839389,40717.0,40716.0,0.0011]
[1642722606121,1.1,40716.0,40715.0,0.093072]
[1642722606319,1.1,40716.0,40697.0,0.93217943]
[1642722606322,1.1,40716.0,40702.0,0.62409508]
[1642722606323,0.449401,40714.0,40702.0,0.62409508]
[1642722606517,0.449401,40714.0,40700.0,0.0001]
[1642722606518,1.684965,40710.0,40700.0,0.0001]
[1642722606718,1.805705,40710.0,40700.0,0.0001]
[1642722606918,1.905705,40710.0,40700.0,0.0001]
[1642722607119,1.905705,40710.0,40709.0,0.096]
[1642722607317,0.061433,40707.0,40700.0,0.0001]
[1642722607519,0.06143706,40706.0,40700.0,0.0001]
[1642722607718,0.18431006,40706.0,40700.0,0.0001]
[1642722608117,0.18441068,40706.0,40700.0,0.0001]
[1642722608518,0.061436,40705.0,40700.0,0.0001]
[1642722608721,0.00010062,40706.0,40705.0,1.55082489]
[1642722608920,0.00010062,40706.0,40705.0,2.12254812]
[1642722609119,0.00010062,40706.0,40705.0,1.72172323]
[1642722609519,6.2e-07,40706.0,40705.0,1.72172323]
[1642722609775,6.2e-07,40706.0,40705.0,2.39581831]
[1642722610068,6.2e-07,40706.0,40705.0,2.40681831]
[1642722610269,6.2e-07,40706.0,40705.0,2.38983831]
[1642722610469,6.2e-07,40706.0,40705.0,2.35681831]
[1642722611169,6.2e-07,40706.0,40705.0,1.72172323]
[1642722611676,6.2e-07,40706.0,40705.0,1.67172323]
[1642722611872,0.00121289,40720.0,40705.0,1.78572323]
[1642722612075,0.00121289,40720.0,40708.0,0.17406832]
[1642722612273,0.00121289,40720.0,40711.0,0.62379134]
[1642722612471,0.00121289,40720.0,40715.0,0.38919657]
[1642722612673,0.01226,40736.0,40719.0,1.532965]
[1642722612874,0.3241502,40734.0,40733.0,0.25141231]
[1642722613073,0.3241502,40734.0,40728.0,0.31788921]
[1642722613074,0.00120272,40736.0,40732.0,0.1]
[1642722613273,0.00120272,40736.0,40731.0,0.1]
[1642722613943,0.00120272,40736.0,40732.0,0.30171481]
[1642722614139,0.00120272,40736.0,40731.0,0.102]
[1642722614140,0.00241566,40736.0,40731.0,0.102]
[1642722614339,0.00241566,40736.0,40731.0,0.002]
[1642722614538,0.00241566,40736.0,40731.0,0.102]
[1642722614739,0.00241566,40736.0,40731.0,0.002]
[1642722615140,1.297,40734.0,40730.0,0.1]
[1642722615340,0.77042304,40733.0,40730.0,0.1]
[1642722615540,0.77042304,40733.0,40720.0,1.0]
[1642722615541,0.43551175,40731.0,40720.0,1.0]
[1642722615740,0.32300025,40725.0,40720.0,1.0]
[1642722615940,0.13967921,40724.0,40721.0,0.009802]
[1642722616141,0.09583867,40721.0,40720.0,0.95214564]
[1642722616941,0.09501135,40723.0,40720.0,0.95214564]
[1642722617362,0.09403619,40724.0,40720.0,0.95214564]
[1642722617762,0.00121309,40724.0,40721.0,0.68026667]
[1642722617963,0.09395814,40724.0,40721.0,0.68026667]
[1642722618163,0.00121309,40724.0,40721.0,0.68026667]
[1642722618565,0.00121309,40724.0,40722.0,0.08811946]
[1642722618767,0.50283913,40736.0,40723.0,0.833309]
[1642722618768,0.00243913,40736.0,40723.0,0.833309]
[1642722618968,0.00121307,40725.0,40723.0,0.833309]
[1642722619566,0.00121307,40725.0,40724.0,1.50317902]
[1642722619964,0.00120272,40736.0,40724.0,0.70317902]
[1642722619965,0.01346272,40736.0,40724.0,0.70317902]
[1642722620169,0.00121305,40727.0,40724.0,0.350072]
[1642722620669,0.00121305,40727.0,40726.0,0.34602625]
[1642722620909,0.00121305,40727.0,40726.0,0.64602625]
[1642722621109,0.061389,40733.0,40726.0,0.64602625]
[1642722621318,0.00121303,40729.0,40726.0,0.64602625]
[1642722621513,0.00121303,40729.0,40727.0,0.10044634]
[1642722621914,0.00121303,40729.0,40728.0,1.47269017]
[1642722622111,0.00121303,40729.0,40728.0,1.52269017]
[1642722622311,0.00120272,40736.0,40735.0,0.95294015]
[1642722622512,0.00120272,40736.0,40735.0,0.95422464]
[1642722622719,0.00120272,40736.0,40735.0,1.05422464]
[1642722622913,0.00120272,40736.0,40735.0,0.10128449]
[1642722623513,0.00120272,40736.0,40735.0,0.1]
[1642722623714,0.00120272,40736.0,40725.0,0.10129379]
[1642722623715,0.40149272,40736.0,40725.0,0.10129379]
[1642722623914,0.01346272,40736.0,40735.0,0.006]
[1642722624117,0.9338456,40736.0,40735.0,0.006]
[1642722624316,0.8289456,40736.0,40735.0,0.006]
[1642722624518,0.9289456,40736.0,40735.0,0.006]
[1642722624763,0.40149272,40736.0,40735.0,0.006]
[1642722625068,0.80716609,40736.0,40735.0,0.006]
[1642722625463,1.12501768,40736.0,40734.0,0.1]
[1642722625663,0.46002536,40735.0,40733.0,0.1]
[1642722625864,0.12280369,40732.0,40721.0,7.2e-05]
[1642722626063,0.38389105,40731.0,40723.0,0.35588647]
[1642722626263,0.38389105,40731.0,40720.0,0.95341758]
[1642722626264,0.37772855,40729.0,40720.0,0.95341758]
[1642722626463,0.3615017,40728.0,40720.0,0.95341758]
[1642722626665,0.06226,40727.0,40720.0,0.95214564]
[1642722626864,1.470665,40727.0,40720.0,0.95214564]
[1642722627063,0.388026,40726.0,40720.0,0.95221764]
[1642722627265,0.33506611,40727.0,40720.0,0.95221764]
[1642722627565,0.00108034,40726.0,40720.0,0.95221764]
[1642722627965,0.00108034,40726.0,40720.0,1.04303894]
[1642722628165,0.00108034,40726.0,40724.0,0.27703336]
[1642722628419,0.17226,40727.0,40724.0,0.27703336]
[1642722628420,0.07226,40727.0,40725.0,0.008799]
[1642722628620,0.01,40727.0,40725.0,0.008799]
[1642722629223,0.07333,40728.0,40726.0,0.76676798]
[1642722629422,0.07333,40728.0,40727.0,0.008792]
[1642722629725,0.07333,40728.0,40727.0,0.36802775]
[1642722629726,0.07442486,40728.0,40727.0,0.36802775]
[1642722629922,0.11142486,40728.0,40727.0,1.06802775]
[1642722630123,0.11142486,40728.0,40727.0,0.36802775]
[1642722630327,0.11142486,40728.0,40727.0,0.12200852]
[1642722630522,0.11142486,40728.0,40727.0,0.008792]
[1642722630726,0.11033,40728.0,40727.0,0.008792]
[1642722631123,0.07333,40728.0,40727.0,0.008792]
[1642722631529,0.07333,40728.0,40727.0,0.30272563]
[1642722631722,0.07333,40728.0,40727.0,0.90272563]
[1642722631923,0.08133,40728.0,40727.0,0.90272563]
[1642722632163,0.07816886,40728.0,40727.0,0.90272563]
[1642722632362,0.07816886,40728.0,40727.0,0.30272563]
[1642722632561,0.07766886,40728.0,40727.0,0.85272563]
[1642722632762,0.07766886,40728.0,40727.0,0.94073036]
[1642722632963,0.07766886,40728.0,40727.0,0.39073036]
[1642722633161,0.06966886,40728.0,40727.0,0.39073036]
[1642722633562,0.06966886,40728.0,40727.0,0.09679673]
[1642722634462,0.06966886,40728.0,40727.0,0.008792]
[1642722634863,0.00125799,40744.0,40728.0,0.72]
[1642722635062,0.9787036,40747.0,40728.0,0.72]
[1642722635063,0.09547256,40742.0,40728.0,0.12]
[1642722635263,1.0,40738.0,40728.0,0.12]
[1642722635465,0.09637431,40736.0,40728.0,0.12]
[1642722635663,0.061393,40733.0,40728.0,0.12]
[1642722635929,0.09826471,40731.0,40726.0,0.1]
[1642722636130,0.05,40730.0,40724.0,0.68781782]
[1642722636331,0.05,40730.0,40724.0,0.58781782]
[1642722636630,0.01227,40730.0,40724.0,0.27703336]
[1642722637430,0.06139671,40729.0,40724.0,0.27703336]
[1642722638036,0.06839671,40729.0,40724.0,0.27703336]
[1642722638633,0.06839671,40729.0,40724.0,0.37575894]
[1642722638634,0.12979371,40729.0,40724.0,0.37575894]
[1642722638833,0.12979371,40729.0,40724.0,0.37035775]
[1642722639033,0.17979371,40729.0,40724.0,0.37035775]
[1642722639234,0.17279371,40729.0,40724.0,0.37035775]
[1642722639435,0.17279371,40729.0,40724.0,0.27163217]
[1642722640067,0.056,40729.0,40724.0,0.27163217]
[1642722640267,0.006,40729.0,40724.0,0.27163217]
[1642722640467,0.006,40729.0,40724.0,0.27286883]
[1642722640677,0.006,40729.0,40725.0,0.35421618]
[1642722641069,0.006,40729.0,40726.0,0.09366607]
[1642722641268,0.00114624,40732.0,40727.0,0.008791]
[1642722641471,0.01227,40737.0,40731.0,0.25581704]
[1642722641669,0.388026,40736.0,40730.0,0.1]
[1642722641869,0.00114626,40732.0,40729.0,0.1]
[1642722642070,0.01227,40730.0,40729.0,0.1]
[1642722642670,0.01227,40730.0,40723.0,0.27604965]
[1642722642870,0.01227,40730.0,40722.0,0.1]
[1642722643070,0.01227,40730.0,40720.0,0.95298134]
[1642722643071,0.29987244,40726.0,40721.0,0.1]
[1642722643273,0.1228083,40725.0,40721.0,0.1]
[1642722643919,0.1688083,40725.0,40721.0,0.002]
[1642722644717,0.046,40725.0,40722.0,0.11785153]
[1642722645317,0.00108748,40732.0,40722.0,0.11785153]
[1642722645522,0.3051853,40732.0,40723.0,0.32663458]
[1642722645719,0.3051853,40732.0,40722.0,0.11785153]
[1642722645923,0.06139484,40730.0,40722.0,0.001]
[1642722646121,0.10443976,40728.0,40722.0,0.001]
[1642722646323,0.49963714,40727.0,40722.0,0.001]
[1642722646523,1.28309872,40723.0,40722.0,0.001]
[1642722646721,1.34046872,40723.0,40722.0,0.001]
[1642722646922,1.61546371,40723.0,40722.0,0.001]
[1642722647179,0.62039099,40723.0,40721.0,0.1]
[1642722647480,0.05,40722.0,40719.0,0.1]
[1642722647681,0.12282769,40724.0,40720.0,0.00087574]
[1642722647980,0.023,40722.0,40720.0,0.00087574]
[1642722648380,0.023,40722.0,40721.0,0.26379096]
[1642722648981,0.023,40722.0,40720.0,0.1]
[1642722649180,0.073675,40724.0,40719.0,0.10087576]
[1642722649383,0.12501391,40721.0,40719.0,0.10087576]
[1642722649582,0.850296,40720.0,40719.0,0.10087576]
[1642722649783,1.36741038,40720.0,40719.0,0.00087576]
[1642722649981,2.392396,40720.0,40716.0,0.1]
[1642722650181,2.392396,40720.0,40711.0,0.00350382]
[1642722650182,0.388026,40717.0,40711.0,0.00350382]
[1642722650485,0.061427,40714.0,40711.0,0.00350382]
[1642722650682,0.26227,40712.0,40711.0,0.00350382]
[1642722650916,0.700296,40712.0,40711.0,0.00350382]
[1642722651113,0.700296,40712.0,40710.0,7.2e-05]
[1642722651313,0.388026,40711.0,40709.0,0.00087665]
[1642722651512,0.74719222,40711.0,40709.0,0.00087665]
[1642722651714,0.84719222,40711.0,40709.0,0.00087665]
[1642722651912,0.01227,40710.0,40709.0,0.00087665]
[1642722652112,0.400296,40710.0,40709.0,0.00087665]
[1642722652313,0.450296,40710.0,40708.0,0.1]
[1642722652615,0.550296,40710.0,40707.0,0.10094872]
[1642722652813,0.450296,40710.0,40707.0,0.10087672]
[1642722653012,0.01227,40708.0,40707.0,0.10094872]
[1642722653214,0.01227,40708.0,40707.0,0.00087672]
[1642722653715,0.01227,40708.0,40706.0,0.55608394]
[1642722653914,0.01227,40708.0,40706.0,0.55601194]
[1642722654113,0.400296,40707.0,40706.0,0.55601194]
[1642722654313,0.450296,40707.0,40706.0,0.55601194]
[1642722654515,0.550296,40707.0,40706.0,0.55601194]
[1642722654765,0.600296,40707.0,40706.0,0.55601194]
[1642722655068,1.942396,40707.0,40706.0,0.55601194]
[1642722655963,1.955396,40707.0,40706.0,0.55601194]
[1642722656764,1.954896,40707.0,40706.0,0.06441894]
[1642722657164,1.95615562,40707.0,40706.0,0.06441894]
[1642722657366,1.94315562,40707.0,40706.0,0.06441894]
[1642722657765,1.94315562,40707.0,40705.0,0.28383023]
[1642722657969,1.94315562,40707.0,40705.0,0.18375823]
[1642722657970,1.32468331,40706.0,40705.0,0.18375823]
[1642722658167,1.46978331,40706.0,40705.0,0.18375823]
[1642722658435,2.335026,40705.0,40704.0,0.1]
[1642722658635,2.480126,40705.0,40704.0,0.1]
[1642722658834,1.297,40704.0,40703.0,0.00087678]
[1642722659037,0.9481399,40704.0,40703.0,0.00087678]
[1642722659537,0.9481399,40704.0,40702.0,0.1]
[1642722659538,0.656848,40704.0,40702.0,0.1]
[1642722659735,0.388026,40703.0,40700.0,0.000172]
[1642722659935,0.01228,40701.0,40700.0,0.000172]
[1642722660136,0.445406,40701.0,40700.0,0.0001]
[1642722660336,0.545406,40701.0,40700.0,0.0001]
[1642722660539,0.706849,40701.0,40700.0,0.0001]
[1642722662179,0.605406,40701.0,40700.0,0.0001]
[1642722662376,0.410306,40701.0,40700.0,0.0001]
[1642722662978,0.02228,40701.0,40700.0,0.0001]
[1642722663480,0.02228,40701.0,40699.0,0.1]
[1642722663481,1.038026,40700.0,40699.0,0.1]
[1642722663680,1.62156517,40700.0,40681.0,0.0012034]
[1642722663878,1.62156517,40700.0,40664.0,1.497]
[1642722663879,0.00124177,40693.0,40670.0,0.91455418]
[1642722664082,0.26077079,40692.0,40677.0,0.00126107]
[1642722664278,0.26077079,40692.0,40679.0,0.09253245]
[1642722664279,0.72409798,40691.0,40679.0,0.09253245]
[1642722664478,0.72409798,40691.0,40678.0,0.87577515]
[1642722664479,0.27938771,40686.0,40678.0,0.87577515]
[1642722664681,0.27938771,40686.0,40678.0,0.55621257]
[1642722664878,1.77701507,40684.0,40678.0,0.24256045]
[1642722665079,0.388026,40683.0,40678.0,0.24256045]
[1642722665481,1.82701507,40684.0,40678.0,0.24256045]
[1642722665778,1.82701507,40684.0,40678.0,0.58042443]
[1642722665779,0.388026,40683.0,40678.0,0.58042443]
[1642722666020,1.83501507,40684.0,40678.0,0.58942443]
[1642722666522,0.008,40684.0,40678.0,0.58942443]
[1642722666723,0.008,40684.0,40679.0,0.008883]
[1642722666919,0.008,40684.0,40683.0,0.75]
[1642722667121,0.008,40684.0,40682.0,0.1]
[1642722667319,0.1034486,40691.0,40685.0,0.31504267]
[1642722667519,0.27278623,40685.0,40683.0,0.1]
[1642722667719,0.1034486,40691.0,40682.0,0.1]
[1642722667720,0.01228,40688.0,40682.0,0.1]
[1642722667922,0.01228,40688.0,40678.0,0.43786398]
[1642722668120,0.05,40689.0,40682.0,0.00075278]
[1642722668319,0.70854475,40688.0,40682.0,0.00075278]
[1642722668519,0.70854475,40688.0,40685.0,0.25798782]
[1642722668521,0.538026,40688.0,40685.0,0.25798782]
[1642722668919,0.87585562,40688.0,40683.0,0.1]
[1642722669120,0.88813562,40688.0,40682.0,0.1]
[1642722669322,0.88813562,40688.0,40684.0,0.00075271]
[1642722669525,0.77585562,40688.0,40684.0,0.00075271]
[1642722669765,0.77085562,40688.0,40684.0,0.00075271]
[1642722669965,0.77085562,40688.0,40685.0,0.31634258]
[1642722670170,0.72585562,40688.0,40684.0,0.00075271]
[1642722670368,0.72585562,40688.0,40683.0,0.1]
[1642722670568,0.72585562,40688.0,40684.0,0.00075271]
[1642722671169,0.77585562,40688.0,40684.0,0.2440529]
[1642722671569,0.77585562,40688.0,40684.0,0.24330019]
[1642722671771,0.77585562,40688.0,40684.0,0.24405291]
[1642722672571,0.77585562,40688.0,40684.0,0.22689524]
[1642722672776,0.77585562,40688.0,40684.0,0.22614252]
[1642722672972,0.77585562,40688.0,40684.0,0.22689524]
[1642722673176,0.72585562,40688.0,40684.0,0.22689524]
[1642722673617,0.388026,40688.0,40686.0,0.12254575]
[1642722673817,0.00124177,40693.0,40685.0,0.05]
[1642722674020,0.01228,40694.0,40685.0,0.15]
[1642722674217,0.01349335,40694.0,40685.0,0.15075269]
[1642722674719,0.01349335,40694.0,40685.0,0.10075269]
[1642722674720,0.34860001,40691.0,40685.0,0.10075269]
[1642722674918,0.34860001,40691.0,40685.0,0.00075269]
[1642722674919,0.00123833,40689.0,40685.0,0.00075269]
[1642722675119,0.388026,40688.0,40683.0,0.1]
[1642722675318,0.388026,40688.0,40686.0,0.00075267]
[1642722675517,0.538026,40688.0,40686.0,0.00075267]
[1642722675718,0.01228,40687.0,40686.0,0.00075267]
[1642722675919,0.400306,40687.0,40686.0,0.00075267]
[1642722676117,0.500306,40687.0,40686.0,0.00075267]
[1642722676318,0.500306,40687.0,40685.0,0.1]
[1642722676918,0.500306,40687.0,40684.0,0.00075271]
[1642722677170,0.500306,40687.0,40684.0,0.00082471]
[1642722677368,0.01228,40685.0,40684.0,0.00082471]
[1642722677664,0.01228,40685.0,40683.0,0.00075274]
[1642722678467,0.01228,40684.0,40683.0,0.00075274]
[1642722678667,0.01228,40684.0,40683.0,7.2e-05]
[1642722678867,0.01228,40684.0,40682.0,0.1]
[1642722678868,0.08107,40684.0,40682.0,0.00075278]
[1642722679069,0.13107,40684.0,40682.0,0.10075278]
[1642722679470,0.47299921,40684.0,40682.0,0.00075278]
[1642722679874,0.01228,40683.0,40681.0,0.100072]
[1642722680072,0.01228,40683.0,40681.0,0.10075281]
[1642722680272,0.01228,40683.0,40681.0,0.00075281]
[1642722680472,0.13107,40684.0,40681.0,0.00075281]
[1642722680675,0.13107,40684.0,40681.0,0.00082481]
[1642722680918,0.01228,40682.0,40681.0,0.00082481]
[1642722681220,0.388026,40682.0,40680.0,0.1]
[1642722681422,0.01228,40690.0,40684.0,0.10188133]
[1642722681630,0.01349327,40694.0,40683.0,0.37382574]
[1642722681817,0.01349327,40694.0,40683.0,0.27382574]
[1642722681818,0.388026,40693.0,40683.0,0.27382574]
[1642722682018,0.388026,40693.0,40683.0,0.27389774]
[1642722682217,0.388026,40693.0,40686.0,0.28296562]
[1642722682421,0.57239225,40693.0,40686.0,0.28296562]
[1642722682617,0.57239225,40693.0,40686.0,0.28371829]
[1642722682618,0.01228,40692.0,40686.0,0.28371829]
[1642722682817,0.388026,40691.0,40686.0,0.28379029]
[1642722683018,0.538026,40691.0,40686.0,0.00082467]
[1642722683217,0.438026,40691.0,40686.0,0.00082467]
[1642722683419,0.538026,40691.0,40686.0,0.00082467]
[1642722683617,0.01228,40690.0,40686.0,7.2e-05]
[1642722683818,0.388026,40689.0,40686.0,0.00075265]
[1642722684018,0.01228,40687.0,40686.0,0.00082465]
[1642722684218,0.400306,40687.0,40686.0,0.00075265]
[1642722684418,0.450306,40687.0,40686.0,0.00075265]
[1642722685073,0.550306,40687.0,40685.0,0.100072]
[1642722685269,0.550306,40687.0,40685.0,0.1]
[1642722685270,0.438026,40687.0,40685.0,0.1]
[1642722685470,0.0512457,40687.0,40685.0,0.1]
[1642722685670,0.01228,40686.0,40684.0,0.00084508]
[1642722685872,0.01228,40686.0,40684.0,7.2e-05]
[1642722686068,0.01228,40686.0,40682.0,7.2e-05]
[1642722686270,0.28371506,40685.0,40684.0,0.00062077]
[1642722686469,0.67174106,40685.0,40684.0,0.00062077]
[1642722686669,0.83402106,40685.0,40683.0,0.09569277]
[1642722686869,0.388026,40684.0,40682.0,7.2e-05]
[1642722687069,0.639536,40684.0,40682.0,0.1]
[1642722687271,0.76811876,40683.0,40682.0,0.1]
[1642722687470,0.76811876,40683.0,40681.0,7.2e-05]
[1642722687674,0.76811876,40683.0,40680.0,0.109812]
[1642722687675,1.238026,40682.0,40680.0,0.1]
[1642722687870,0.78039876,40681.0,40680.0,0.100072]
[1642722688092,0.78039876,40681.0,40679.0,0.1]
[1642722688093,2.35037736,40681.0,40679.0,0.1]
[1642722688271,2.397,40679.0,40666.0,0.00127388]
[1642722688516,2.397,40679.0,40666.0,0.1]
[1642722688517,0.061493,40676.0,40666.0,0.1]
[1642722688716,0.32858184,40671.0,40666.0,0.1]
[1642722688916,0.32858184,40671.0,40661.0,1.0139]
[1642722688917,0.00120727,40669.0,40661.0,1.0139]
[1642722689121,0.00120727,40669.0,40661.0,0.01890485]
[1642722689122,0.51184799,40669.0,40661.0,0.01890485]
[1642722689320,0.51184799,40669.0,40660.0,0.0002]
[1642722689321,0.29466022,40664.0,40660.0,0.0002]
[1642722689518,0.29466022,40664.0,40659.0,0.02000485]
[1642722689519,1.588026,40661.0,40659.0,0.02000485]
[1642722689718,1.588026,40661.0,40657.0,0.00299431]
[1642722689719,1.138026,40659.0,40657.0,0.00299431]
[1642722690018,1.903936,40658.0,40657.0,0.00299431]
[1642722690221,0.556936,40658.0,40657.0,0.00299431]
[1642722690418,0.495406,40658.0,40657.0,0.00299431]
[1642722690617,0.44668218,40658.0,40653.0,0.00786782]
[1642722690820,0.00127618,40658.0,40653.0,0.00786782]
[1642722691018,0.00127618,40658.0,40655.0,0.35888545]
[1642722691216,0.01228,40665.0,40655.0,0.00074869]
[1642722691417,0.0451,40667.0,40662.0,0.44056761]
[1642722691618,0.388026,40666.0,40662.0,0.44056761]
[1642722691825,0.06148901,40670.0,40662.0,0.44056761]
[1642722692018,0.061488,40674.0,40662.0,0.44056761]
[1642722692275,0.42,40679.0,40665.0,0.34607509]
[1642722692474,0.42,40679.0,40654.0,0.122967]
[1642722692475,0.77731698,40678.0,40654.0,0.122967]
[1642722692674,0.77731698,40678.0,40651.0,0.00128894]
[1642722692675,0.01228,40677.0,40651.0,0.00128894]
[1642722692879,0.00121213,40669.0,40651.0,0.00128894]
[1642722693074,0.01228,40668.0,40651.0,0.00128894]
[1642722693274,0.1230013,40666.0,40651.0,0.00128894]
[1642722693477,0.33604382,40664.0,40656.0,0.43229416]
[1642722693675,0.061503,40663.0,40656.0,0.43229416]
[1642722693875,0.05,40664.0,40656.0,0.43229416]
[1642722694076,0.05,40665.0,40656.0,0.43229416]
[1642722694476,0.01228,40669.0,40661.0,0.25141096]
[1642722694676,0.00121381,40662.0,40661.0,0.25141096]
[1642722694876,0.00121381,40662.0,40656.0,0.43358292]
[1642722695077,0.00121381,40662.0,40656.0,0.48229416]
[1642722695479,0.00121381,40662.0,40656.0,0.47729416]
[1642722695679,0.33499276,40668.0,40656.0,0.47729416]
[1642722695680,0.33499276,40668.0,40665.0,0.11686454]
[1642722695930,0.30856332,40675.0,40665.0,0.11686454]
[1642722695931,0.388026,40667.0,40665.0,0.34627953]
[1642722696230,0.00122367,40675.0,40656.0,0.04625383]
[1642722696231,0.33499276,40673.0,40656.0,0.04625383]
[1642722696430,0.073773,40672.0,40656.0,0.00125383]
[1642722696730,0.73409336,40671.0,40662.0,0.28142178]
[1642722696930,0.00113219,40666.0,40662.0,0.28142178]
[1642722697130,0.00113219,40666.0,40661.0,0.061486]
[1642722697338,0.00113219,40666.0,40655.0,0.00053061]
[1642722697340,0.24032719,40665.0,40655.0,0.00053061]
[1642722697531,0.06277589,40663.0,40655.0,0.00053061]
[1642722697736,0.433126,40662.0,40655.0,0.00053061]
[1642722697934,0.433126,40662.0,40650.0,0.0001]
[1642722697935,0.00123705,40657.0,40650.0,0.0001]
[1642722698134,0.83482443,40656.0,40655.0,0.00053066]
[1642722698332,0.76177043,40656.0,40655.0,0.00053066]
[1642722698532,0.495406,40656.0,40655.0,0.00053066]
[1642722698831,0.450306,40656.0,40655.0,0.00053066]
[1642722699331,0.450306,40656.0,40653.0,0.00053071]
[1642722699532,0.01228,40656.0,40653.0,0.00053071]
[1642722700371,0.01228,40656.0,40650.0,0.03749538]
[1642722701173,0.07379042,40656.0,40654.0,0.12401019]
[1642722701376,0.0012557,40652.0,40651.0,7.2e-05]
[1642722701577,0.0012557,40652.0,40650.0,0.03756738]
[1642722701578,0.05874578,40652.0,40650.0,0.03756738]
[1642722701775,2.026137,40651.0,40645.0,0.0011]
[1642722701977,0.388026,40647.0,40645.0,0.0011]
[1642722702173,0.388026,40647.0,40639.0,0.001]
[1642722702174,0.45,40645.0,40640.0,0.8143]
[1642722702375,0.28713279,40641.0,40640.0,0.8143]
[1642722702576,0.73743879,40641.0,40640.0,0.8143]
[1642722702776,0.450306,40641.0,40640.0,0.80814]
[1642722702975,0.776884,40641.0,40640.0,0.80814]
[1642722703175,0.450306,40641.0,40640.0,0.80814]
[1642722703815,0.45158036,40641.0,40640.0,0.80814]
[1642722704015,0.438026,40641.0,40640.0,0.80814]
[1642722704216,0.12308064,40642.0,40640.0,0.80814]
[1642722704219,0.06154364,40642.0,40640.0,0.80814]
[1642722704417,0.06153,40646.0,40640.0,0.80814]
[1642722704418,0.06152455,40643.0,40640.0,0.80814]
[1642722704615,0.06152455,40643.0,40640.0,1.10751147]
[1642722704817,0.01228,40649.0,40640.0,0.80814]
[1642722704818,0.31266004,40644.0,40640.0,0.80814]
[1642722705016,0.01228,40645.0,40640.0,0.80814]
[1642722705217,0.061529,40646.0,40640.0,0.80814]
[1642722705417,0.06152448,40644.0,40640.0,0.8088617]
[1642722705619,0.06152448,40644.0,40640.0,0.7588617]
[1642722706021,0.06152448,40644.0,40640.0,0.7539517]
[1642722706220,0.06152448,40644.0,40643.0,0.24751948]
[1642722706421,0.01228,40649.0,40643.0,0.24751948]
[1642722706619,0.388026,40648.0,40640.0,0.7527017]
[1642722706820,0.01228,40649.0,40640.0,0.7527017]
[1642722707025,0.00124681,40647.0,40640.0,0.7527017]
[1642722707279,0.061532,40645.0,40640.0,0.0007217]
[1642722707479,0.5110891,40644.0,40640.0,0.0007217]
[1642722707681,0.5110891,40644.0,40632.0,0.25245669]
[1642722707878,0.45,40643.0,40635.0,0.00288708]
[1642722708079,0.388026,40642.0,40637.0,0.11092953]
[1642722708278,0.061527,40647.0,40637.0,0.11092953]
[1642722708478,0.388026,40646.0,40638.0,0.00121527]
[1642722708682,0.28025331,40649.0,40643.0,0.34330199]
[1642722708879,0.02564,40652.0,40643.0,0.34330199]
[1642722708880,0.01228,40650.0,40643.0,0.34330199]
[1642722709081,0.388026,40649.0,40643.0,0.34330199]
[1642722709379,0.461831,40649.0,40638.0,0.00121527]
[1642722709580,0.30572343,40648.0,40642.0,0.009822]
[1642722709782,0.388026,40647.0,40642.0,0.009822]
[1642722709980,0.34388719,40646.0,40635.0,0.30978369]
[1642722710181,0.32295548,40645.0,40624.0,0.0011]
[1642722710382,0.32295548,40645.0,40627.0,0.00121369]
[1642722710580,0.388026,40644.0,40631.0,0.26392813]
[1642722710924,0.01228,40643.0,40634.0,0.11601405]
[1642722711123,0.388026,40642.0,40634.0,0.11601405]
[1642722711325,0.06153274,40641.0,40634.0,0.11601405]
[1642722711521,0.12306548,40642.0,40634.0,0.11601405]
[1642722711721,0.35768773,40645.0,40634.0,0.11601405]
[1642722711921,0.05,40645.0,40634.0,0.11601405]
[1642722712121,0.01228,40646.0,40634.0,0.11601405]
[1642722712320,0.28106501,40644.0,40641.0,0.68329745]
[1642722712522,0.45411493,40644.0,40641.0,0.68329745]
[1642722712923,0.17304992,40644.0,40641.0,0.68329745]
[1642722713321,0.111523,40644.0,40641.0,0.68329745]
[1642722713522,0.111523,40644.0,40641.0,0.69311945]
[1642722713825,0.111523,40644.0,40641.0,0.68329745]
[1642722714023,0.28022718,40643.0,40641.0,0.68329745]
[1642722714223,0.111523,40644.0,40641.0,0.78033961]
[1642722714969,0.111523,40644.0,40641.0,0.68329745]
[1642722716172,0.46228,40642.0,40641.0,0.68329745]
[1642722716376,1.16229033,40642.0,40641.0,0.68329745]
[1642722716572,0.76229033,40642.0,40641.0,0.68329745]
[1642722716772,0.86229033,40642.0,40641.0,0.68329745]
[1642722717473,0.8678819,40642.0,40641.0,0.68329745]
[1642722717873,1.69313916,40642.0,40641.0,0.68329745]
[1642722718074,1.69313916,40642.0,40641.0,0.19093446]
[1642722718274,1.85289757,40642.0,40641.0,0.19093446]
[1642722718526,0.18463398,40640.0,40639.0,0.00080396]
[1642722718727,2.59101437,40619.0,40601.0,0.56891656]
[1642722718931,0.79888786,40608.0,40603.0,0.05]
[1642722719127,0.33284584,40613.0,40608.0,0.00125811]
[1642722719128,0.79888786,40612.0,40608.0,0.00125811]
[1642722719326,0.33284584,40613.0,40608.0,0.00125811]
[1642722719327,1.1317337,40613.0,40609.0,0.073858]
[1642722719528,0.79888786,40610.0,40609.0,0.073858]